Cogmind - Beta 13 @@@ ROGUE MODE // 2024.03.31 @ 12:10:36 Player: ANickel Result: Self-destructed Performance ------------- Evolutions (2) 1000 Regions Visited (6) 1200 Robots Destroyed (29) 145 Value Destroyed (633) 633 Prototype IDs (1) 20 Alien Tech Used (0) 0 Bonus (500) 500 TOTAL SCORE: 3498 Bonus ------- Entered Garrisons 200 Aligned with FarCom 300 Cogmind --------- Core Integrity 475/550 Matter 295/300 Energy 100/100 System Corruption 5% Temperature Cool (0) Movement Rolling (100) Location -8/Garrison Parts ------- > --- POWER (1) -------- (None) > --- PROPULSION (3) --- Armored Huge Wheel > --- UTILITY (5) ------ Targeting Computer Reflective Plating > --- WEAPON (2) ------- Plasma Cannon Guided Plasma Cannon > --- INVENTORY (5) ---- Particle Gun Gauss Rifle Flail Spear Peak State ------------ > --- POWER ------------ Ion Engine > --- PROPULSION ------- Armored Huge Wheel > --- UTILITY ---------- Targeting Computer ECM Suite Reflective Plating > --- WEAPON ----------- Plasma Cannon Guided Plasma Cannon > --- INVENTORY -------- Particle Gun Gauss Rifle Flail Spear [Rating: 27] Favorites ----------- Power Ion Engine Engine Ion Engine Propulsion Wheel Wheel Wheel Utility ECM Suite Device ECM Suite Processor Targeting Computer Protection Reflective Plating Weapon Mini Grenade Launcher Energy Gun Medium Laser Energy Cannon Guided Plasma Cannon Launcher Mini Grenade Launcher Impact Weapon Flail Piercing Weapon Spear Build | -11 -10 -10 -10 -9 -8 -8 ------- Run | Yrd Mat Min Exi Min Mat Gar Slots Evolved 4 | . . . . . 4 . Power . | . . . . . . . Propulsion 1 | . . . . . 1 . Utility 3 | . . . . . 3 . Weapon . | . . . . . . . Parts Attached 24 | 7 6 . 2 6 1 2 Power 2 | 1 1 . . . . . Engine 2 | 1 1 . . . . . Core . | . . . . . . . Reactor . | . . . . . . . Propulsion 5 | 2 2 . . 1 . . Treads . | . . . . . . . Leg . | . . . . . . . Wheel 5 | 2 2 . . 1 . . Hover . | . . . . . . . Flight . | . . . . . . . Utility 6 | 2 1 . . 2 1 . Device 4 | 2 1 . . 1 . . Storage . | . . . . . . . Processor 1 | . . . . 1 . . Hackware . | . . . . . . . Protection 1 | . . . . . 1 . Artifact . | . . . . . . . Weapon 11 | 2 2 . 2 3 . 2 Energy Gun 3 | 2 1 . . . . . Energy Cannon 4 | . . . 2 . . 2 Ballistic Gun . | . . . . . . . Ballistic Cannon . | . . . . . . . Launcher 1 | . 1 . . . . . Special Weapon . | . . . . . . . Impact Weapon 1 | . . . . 1 . . Slashing Weapon . | . . . . . . . Piercing Weapon 2 | . . . . 2 . . Special Melee Weapon . | . . . . . . . Unidentified Prototypes 1 | . . . 1 . . . Parts Lost 3 | . . . . . . 3 Power 1 | . . . . . . 1 Propulsion . | . . . . . . . Utility 1 | . . . . . . 1 Weapon 1 | . . . . . . 1 Highest Loss Streak 3 | . . . . . . 3 To Critical Strikes . | . . . . . . . Average Slot Usage (%) 93 | . 100 100 100 93 54 53 Engine 13 | . 14 14 14 14 9 4 Wheel 24 | . 28 28 28 21 9 9 Device 24 | . 28 28 28 23 9 4 Processor 2 | . . . . 4 9 9 Energy Gun 10 | . 23 14 6 . . . Energy Cannon 5 | . . . 7 8 . 13 Launcher 9 | . 4 14 14 14 9 3 Piercing Weapon 1 | . . . . 4 9 1 Naked Turns . | . . . . . . . Heaviest Build 22 | 9 13 11 19 21 14 22 Greatest Support 28 | 26 26 26 26 28 28 28 Greatest Overweight (x) 6 | . . . . 6 . . Average Overweight (x) . | . . . . . . . Largest Inventory Capacity 5 | 5 5 5 5 5 5 5 Average Capacity 5 | 5 5 5 5 5 5 5 Most Carried 5 | 4 5 5 5 5 5 5 Average Carried 4 | 2 4 5 5 4 5 4 Final Capacity 5 | 5 5 5 5 5 5 5 Final Carried 5 | 4 5 5 5 5 5 4 Class Distribution -------------------- 81% | Mutant 18% | Skirmisher Dominant Class ---------------- Mutant | -10/Materials Mutant | -10/Mines Mutant | -10/Exiles Skirmisher | -9/Mines Skirmisher | -8/Materials Mutant | -8/Garrison Resources | -11 -10 -10 -10 -9 -8 -8 ----------- Run | Yrd Mat Min Exi Min Mat Gar Matter Collected 629 | 270 57 25 118 100 . 59 Remotely . | . . . . . . . Salvage Created 718 | 136 277 13 . 163 . 129 Parts 58 | 13 23 3 . 10 . 9 Haulers Intercepted 1 | . 1 . . . . . Recyclers Shooed 3 | 1 . . . 2 . . Parts Field Recycled . | . . . . . . . Retrieved Matter . | . . . . . . . Parts Self-Destructed . | . . . . . . . Prevented . | . . . . . . . Kills | -11 -10 -10 -10 -9 -8 -8 ------- Run | Yrd Mat Min Exi Min Mat Gar Combat Hostiles Destroyed 16 | . 7 3 . 2 . 4 Guns 4 | . 4 . . . . . Cannons 2 | . . . . . . 2 AOE 10 | . 3 3 . 2 . 2 Classes Destroyed 10 | 2 5 . . 1 . 2 Worker 2 | . . . . 2 . . Tunneler 5 | 3 1 . . 1 . . Hauler 1 | . 1 . . . . . Recycler 2 | 1 . . . 1 . . Operator 1 | . 1 . . . . . Watcher 2 | . 2 . . . . . Swarmer 6 | . 3 3 . . . . Grunt 6 | . 4 . . 2 . . Duelist 2 | . . . . . . 2 Programmer 2 | . . . . . . 2 Best Kill Streak 4 | 4 4 3 . 3 . 4 Combat Bots Only 4 | . 3 3 . 2 . 4 Max Kills in Single Turn 3 | 1 3 3 . 1 . 2 Gunslinging . | . . . . . . . Exploded 3 | . 3 3 . 1 . 2 Melee . | . . . . . . . Uniques/NPCs Destroyed . | . . . . . . . Combat | -11 -10 -10 -10 -9 -8 -8 -------- Run | Yrd Mat Min Exi Min Mat Gar Hostile Shots Fired 44 | . 16 . . 1 . 27 Missed 9 | . 3 . . . . 6 Damage Taken 610 | . 175 . . 56 . 379 Core 168 | . 83 . . 10 . 75 Absorbed by Shields . | . . . . . . . Core Remaining (%) 81 | 100 . . . 62 . . Volleys Fired 50 | 6 24 1 . 4 . 15 Largest 2 | 2 2 1 . 1 . 1 Hottest 120 | 90 115 30 . 30 . 120 Shots Fired 69 | 12 37 1 . 4 . 15 Gun 38 | 12 26 . . . . . Cannon 13 | . . . . . . 13 Launcher 18 | . 11 1 . 4 . 2 Special . | . . . . . . . Kinetic . | . . . . . . . Thermal 34 | 6 15 . . . . 13 Explosive 18 | . 11 1 . 4 . 2 Electromagnetic 17 | 6 11 . . . . . Robot Hit Streak 15 | 3 15 . . 6 . 13 Robot Miss Streak 2 | 1 2 . . . . 1 Penetration Max . | . . . . . . . Secondary Targets 1 | . 1 . . . . . Max Gunslinging Chain 1 | . 1 . . . . . Shots Hit Robots 50 | 7 23 . . 7 . 13 Core Hits 50 | 4 20 3 . 7 . 16 Critical Kills . | . . . . . . . Critical Parts Destroyed . | . . . . . . . Critical Strikes 2 | 1 1 . . . . . Burn 2 | 1 1 . . . . . Melee Attacks 4 | . . . . 4 . . Impact . | . . . . . . . Slashing . | . . . . . . . Piercing 4 | . . . . 4 . . Sneak Attacks 4 | . . . . 4 . . Combat Hostiles . | . . . . . . . Follow-up Attacks . | . . . . . . . Damage Inflicted 2360 | 92 710 87 . 513 . 958 Guns 354 | 92 262 . . . . . Cannons 386 | . . . . . . 386 Explosions 1379 | . 448 87 . 272 . 572 Melee 241 | . . . . 241 . . Ramming . | . . . . . . . Kinetic . | . . . . . . . Thermal 676 | 49 165 76 . . . 386 Explosive 1303 | . 448 11 . 272 . 572 Electromagnetic 140 | 43 97 . . . . . Impact . | . . . . . . . Slashing . | . . . . . . . Piercing 241 | . . . . 241 . . Highest Corruption 5 | . . . . . . 5 Average Corruption 4 | . . . . . . 4 Corruption Purged . | . . . . . . . Corruption Blocked . | . . . . . . . Effects 4 | . . . . . . 4 Message Errors 3 | . . . . . . 3 Energy Discharges 1 | . . . . . . 1 Overload Shots . | . . . . . . . Overflow Damage 111 | . 22 . . 49 . 40 Projectiles 32 | . . . . . . 32 Explosions 30 | . 22 . . . . 8 Melee 49 | . . . . 49 . . Knockbacks . | . . . . . . . Impact . | . . . . . . . Kinetic . | . . . . . . . Secondary . | . . . . . . . Self-Inflicted Damage 88 | . 22 . . . . 66 Shots 4 | . 2 . . . . 2 Rammed . | . . . . . . . Targets Rammed . | . . . . . . . Kicked . | . . . . . . . Crushed . | . . . . . . . Highest Temperature 467 | 60 144 . . 4 . 467 Average Temperature 125 | 28 62 . . 4 . 264 Received Heat Transfer 90 | . 81 . . 9 . . Effects 4 | . . . . . . 4 Matter Decay 1 | . . . . . . 1 Damage (minor) 1 | . . . . . . 1 Damage (major) 2 | . . . . . . 2 Siege Activations . | . . . . . . . Robots Corrupted . | . . . . . . . Combat Hostiles . | . . . . . . . Parts Fried . | . . . . . . . Impact Corruptions . | . . . . . . . Robots Melted . | . . . . . . . Combat Hostiles . | . . . . . . . Parts Melted 2 | . . 1 . . . 1 Heat Transferred 1560 | 222 518 150 . . . 670 Parts Sabotaged . | . . . . . . . Parts Stolen . | . . . . . . . Parts Stripped . | . . . . . . . Power Chain Reactions . | . . . . . . . Alert | -11 -10 -10 -10 -9 -8 -8 ------- Run | Yrd Mat Min Exi Min Mat Gar Peak Influence 266 | 20 266 221 . 90 5 82 Initial 103 | . 13 103 . . 5 3 Average 75 | 7 89 175 . 61 5 52 Maximum Alert Level 1 | . 1 1 . . . . Low Security (%) 96 | 100 98 38 . 100 100 100 Level 1 3 | . 1 61 . . . . Level 2 . | . . . . . . . Level 3 . | . . . . . . . Level 4 . | . . . . . . . Level 5 . | . . . . . . . High Security . | . . . . . . . Max Security . | . . . . . . . Squads Dispatched 3 | . 3 . . . . . Investigation 2 | . 2 . . . . . Extermination . | . . . . . . . Reinforcement 1 | . 1 . . . . . Assault . | . . . . . . . Garrison . | . . . . . . . Intercept . | . . . . . . . Searches Triggered . | . . . . . . . Construction Impeded . | . . . . . . . Haulers Reinforced . | . . . . . . . Active Scanning Responses . | . . . . . . . Cargo Convoy Interrupts . | . . . . . . . Stealth | -11 -10 -10 -10 -9 -8 -8 --------- Run | Yrd Mat Min Exi Min Mat Gar Distress Signals 2 | . 1 . . . . 1 Communications Jammed . | . . . . . . . Distress Signals . | . . . . . . . Times Spotted 17 | . 12 . . 1 . 4 Peak Tracking Total 4 | . 4 . . 1 1 4 Tactical Retreats . | . . . . . . . Traps | -11 -10 -10 -10 -9 -8 -8 ------- Run | Yrd Mat Min Exi Min Mat Gar Traps Triggered 1 | . . . . 1 . . Indirectly . | . . . . . . . Trap Hack Attempts . | . . . . . . . Triggered . | . . . . . . . Disarmed . | . . . . . . . Reprogrammed . | . . . . . . . Reused . | . . . . . . . Traps Extracted . | . . . . . . . Installed . | . . . . . . . Triggered . | . . . . . . . Machines | -11 -10 -10 -10 -9 -8 -8 ---------- Run | Yrd Mat Min Exi Min Mat Gar Machines Disabled 3 | . 1 2 . . . . Max in Single Turn 2 | . 1 2 . . . . Machines Repaired . | . . . . . . . Machines Dismantled . | . . . . . . . Machines Sabotaged . | . . . . . . . Overloaded Fab Kills . | . . . . . . . Hacking | -11 -10 -10 -10 -9 -8 -8 --------- Run | Yrd Mat Min Exi Min Mat Gar Machines Accessed 11 | . 7 . 1 1 1 1 Terminals 7 | . 6 . . . . 1 Fabricators . | . . . . . . . Repair Stations . | . . . . . . . Recycling Units 1 | . 1 . . . . . Scanalyzers . | . . . . . . . Garrison Access 1 | . . . . . 1 . Total Hacks 60 | . 34 . 23 1 1 1 Successful 45 | . 19 . 23 1 1 1 Failed 15 | . 15 . . . . . Catastrophic 1 | . 1 . . . . . Database Lockouts . | . . . . . . . Manual 28 | . 26 . 2 . . . Terminals 29 | . 28 . . . . 1 Fabricators . | . . . . . . . Repair Stations . | . . . . . . . Recycling Units 6 | . 6 . . . . . Scanalyzers . | . . . . . . . Garrison Access 1 | . . . . . 1 . Terminal Hacks 37 | . 12 . 23 1 . 1 Record 23 | . . . 23 . . . Robot Analysis 5 | . 5 . . . . . Open Door 1 | . . . . 1 . . Emergency Access Points 2 | . 1 . . . . 1 Alert Level 1 | . 1 . . . . . Locate Traps 1 | . 1 . . . . . Patrol Status 1 | . 1 . . . . . Recall Reinforcements 1 | . 1 . . . . . Hauler Manifests 1 | . 1 . . . . . Zone Layout 1 | . 1 . . . . . Fabricator Hacks . | . . . . . . . Repair Station Hacks . | . . . . . . . Recycling Unit Hacks 2 | . 2 . . . . . Retrieve Matter 1 | . 1 . . . . . Retrieve Components 1 | . 1 . . . . . Scanalyzer . | . . . . . . . Garrison Access Hacks 1 | . . . . . 1 . Unlock Access 1 | . . . . . 1 . Unauthorized Hacks 5 | . 5 . . . . . Terminals 3 | . 3 . . . . . Botnet 3 | . 3 . . . . . Fabricators . | . . . . . . . Repair Stations . | . . . . . . . Recycling Units 2 | . 2 . . . . . Reject 1 | . 1 . . . . . Mask 1 | . 1 . . . . . Scanalyzers . | . . . . . . . Garrison Access . | . . . . . . . Data Cores Recovered 1 | . 1 . . . . . Used . | . . . . . . . Hacking Detections 7 | . 6 . . . 1 . Full Trace Events 2 | . 2 . . . . . Feedback Events . | . . . . . . . Feedback Blocked . | . . . . . . . Robot Schematics Acquired . | . . . . . . . Robots Built . | . . . . . . . Authchips . | . . . . . . . Time . | . . . . . . . Total Robot Build Rating . | . . . . . . . Part Schematics Acquired . | . . . . . . . Parts Built . | . . . . . . . Authchips . | . . . . . . . Time . | . . . . . . . Total Part Build Rating . | . . . . . . . Parts Repaired . | . . . . . . . Time . | . . . . . . . Parts Recycled . | . . . . . . . Recycled Matter . | . . . . . . . Retrieved Matter . | . . . . . . . Retrieved Components . | . . . . . . . Parts Scanalyzed . | . . . . . . . Part Schematics Acquired . | . . . . . . . Parts Damaged . | . . . . . . . Bothacking | -11 -10 -10 -10 -9 -8 -8 ------------ Run | Yrd Mat Min Exi Min Mat Gar Used RIF Installer . | . . . . . . . Robots Hacked . | . . . . . . . Non-combat . | . . . . . . . Combat . | . . . . . . . Robot Hacks Applied . | . . . . . . . Relay Couplers Released . | . . . . . . . Fabnet Peak Effective % . | . . . . . . . Robots Rewired 4 | . . . . . . 4 Allies Hacked . | . . . . . . . Hacks Repelled . | . . . . . . . Allies | -11 -10 -10 -10 -9 -8 -8 -------- Run | Yrd Mat Min Exi Min Mat Gar Total Allies 5 | . . . . 1 . 4 Largest Group 3 | . . . . 1 . 3 Highest-Rated Group 54 | . . . . 31 . 54 Highest-Rated Ally 31 | . . . . 31 . 18 Total Orders . | . . . . . . . Ally Attacks . | . . . . . . . Total Damage . | . . . . . . . Kills . | . . . . . . . Allies Corrupted . | . . . . . . . Allies Melted . | . . . . . . . Intel | -11 -10 -10 -10 -9 -8 -8 ------- Run | Yrd Mat Min Exi Min Mat Gar Robot Analysis Total 5 | . 5 . . . . . Derelict Logs Recovered 1 | . . . . 1 . . Drone Launches . | . . . . . . . Drone Recoveries . | . . . . . . . Exploration | -11 -10 -10 -10 -9 -8 -8 ------------- Run | Yrd Mat Min Exi Min Mat Gar Turns Passed 2006 | 94 740 88 275 617 14 178 Spaces Moved 1545 | 70 479 94 301 524 13 64 Core 3 | 2 . . . 1 . . Treads . | . . . . . . . Legs . | . . . . . . . Wheels 1542 | 68 479 94 301 523 13 64 Hover . | . . . . . . . Flight . | . . . . . . . Fastest Speed 50 | 50 80 90 90 90 100 100 Average Speed 91 | 88 88 90 90 94 100 100 Slowest Speed 350 | 90 90 90 90 350 100 100 Overloaded Moves . | . . . . . . . Propulsion Burnouts . | . . . . . . . Robots Hopped . | . . . . . . . Cave-ins Triggered . | . . . . . . . Exploration Rate (%) 34 | 3 72 16 65 72 3 9 Regions Visited 6 Branch Regions 3 Pre-discovered Areas 1 | . . . 1 . . . Known Exits Taken 1 | . . . . . 1 . Unknown Exits Taken 5 | 1 1 1 1 1 . . Scrap Searched 2 | . . 1 . 1 . . Spaces Dug . | . . . . . . . Terrain Destroyed 176 | . 91 19 . 48 . 18 Melee . | . . . . . . . Projectile . | . . . . . . . AOE 176 | . 91 19 . 48 . 18 Terrain Rammed . | . . . . . . . Walls Destroyed . | . . . . . . . Machines Disabled . | . . . . . . . Actions | -11 -10 -10 -10 -9 -8 -8 --------- Run | Yrd Mat Min Exi Min Mat Gar Total 2059 | 86 761 96 304 637 13 162 Wait 345 | . 238 2 . 89 . 16 Move 1539 | 69 478 93 300 523 12 64 Hop . | . . . . . . . Pick Up 15 | 4 7 . . 4 . . Fast Attach 13 | 7 1 . 2 2 1 . Attach 1 | . . . . . . 1 Detach . | . . . . . . . Swap 10 | . 5 . . 4 . 1 Drop 17 | . 8 . 2 7 . . Fire 50 | 6 24 1 . 4 . 15 Melee 4 | . . . . 4 . . Ram . | . . . . . . . Kick . | . . . . . . . Crush . | . . . . . . . Escape Stasis . | . . . . . . . Rewire 65 | . . . . . . 65 Trap . | . . . . . . . Miscellaneous . | . . . . . . . Route ------- -11/Scrapyard -10/Materials (discovered 3 exits: [*Mat x2] / [*Min]) -10/Mines -10/Exiles (discovered 2 exits: *Min x2) -9/Mines -8/Materials (discovered 3 exits: Fac x2 / Gar) -8/Garrison History --------- Turn | Location | Event 11 | -11/Scrapyard | Discovered new exit (range 15) 95 | -11/Scrapyard | Entered Materials 316 | -10/Materials | Build established: Mutant 506 | -10/Materials | Discovered new exit (range 7) 731 | -10/Materials | Discovered new exit (range 5) 823 | -10/Materials | Discovered new exit (range 8) 835 | -10/Materials | Entered Mines 919 | -10/Mines | Deemed a non-threat by the Exiles lab entrance 920 | -10/Mines | Discovered new exit (range 5) 923 | -10/Mines | Entered Exiles 942 | -10/Exiles | Discovered new exit (range 15) 962 | -10/Exiles | Met 8R-AWN 976 | -10/Exiles | Met EX-HEX 1002 | -10/Exiles | Met EX-BIN 1018 | -10/Exiles | Aligned with FarCom system 1019 | -10/Exiles | Given EX-Vault access code 1040 | -10/Exiles | Opened EX-Vault 1046 | -10/Exiles | Found Prototype Energy Cannon 1046 | -10/Exiles | Identified Gui. Plasma Cannon 1069 | -10/Exiles | Warned to stay clear of 0b10 Research branches 1094 | -10/Exiles | Met EX-DEC 1106 | -10/Exiles | Learned location of Zion (-7) 1186 | -10/Exiles | Discovered new exit (range 14) 1198 | -10/Exiles | Left Exiles lab with Gui. Plasma Cannon 1198 | -10/Exiles | Entered Mines 1238 | -9/Mines | Learned location of 2 exits from Materials 1487 | -9/Mines | Build established: Skirmisher 1508 | -9/Mines | Discovered new exit (range 3) 1539 | -9/Mines | Met a Derelict who couldn't figure out how to use a Trap Extractor 1731 | -9/Mines | Received a Mining Laser from a helpful Derelict 1815 | -9/Mines | Entered Materials 1815 | -8/Materials | Evolved 4 slots: Propulsion x1, Utility x3 1816 | -8/Materials | Identified exit to Factory 1828 | -8/Materials | Identified exit to Garrison 1829 | -8/Materials | Entered Garrison 1864 | -8/Garrison | Build established: Mutant 1931 | -8/Garrison | Lost 3 parts (1p1u1w) 2007 | -8/Garrison | Self-destructed Last Messages --------------- 01914_ Gravmag System melted. 01914_ P-60 Hacker destroyed. 01916_ Overheating: Gui. Plasma Cannon damaged (-50). 01918_ Acquired 22 matter. 01931_ System corrupted: Energy discharge (-7). 01939_ Attempting to rewire L-31 Rogue. 01949_ L-31 Rogue rewired. 01950_ Attempting to rewire L-31 Rogue. 01954_ &/#|JPJNK1KY5UUGMRJ1YRNT 7ZDM1G6 D 01954_ Attempting to rewire L-31 Rogue. 01955_ L-31 Rogue rewired. 01958_ Acquired 37 matter. 01959_ Attempting to rewire L-31 Rogue. 01962_ L-31 Rogue rewired. 01964_ Attempting to rewire L-31 Rogue. 01965_ The unstable cave ceiling collapses. 01965_ Attempting to rewire L-31 Rogue. 01994_ /O>CMA PG 7X N>MIKW,:XJTUD,V6C3OZ 01994_ Attempting to rewire L-31 Rogue. 02005_ L-31 Rogue rewired. Map ----- +----------------------------------------------------+ | ????????????????## ????# #?????????????????????? | | ????????????????? ??? "?????????????????????? | | ?????????????????? ??? "?????????????????????? | | ?????????????????? ?? "?????????????????????? | | ??????????????????? ?? "?????????????????????? | | ???????????????????? ?# #?????????????????????? | | ???+????????????????? ## ??????????????????????? | | ????????????????????? ??????????????????????? | | ?????????????????????? +?????????????????????? | | ???????????????????????w ??????????????????????? | | ??+???????????+????????# ##?????????????????????? | | ??+???????????????Y????# T#?????????????????????? | | ?????????????????????+?# #??????????????????????? | | ???????????????????????# #?????????????????????+? | | ?????+?????????????????+ +?????????????????????+? | | ???????????????????????# #?????????????????+???+? | | ???????????????????????# #?????????????????????+? | | ???????????????????????# #####+##???????+??????+? | | ???????????????????????# #??????gg???????? | | ???????????????????????# #######"????????? | | ???????????????????????##/##### ?? | | ???+????????????????????#^#???# ######+++++?????? | | ?????????????????????#### ##### #???????????????? | | ?????????????????????## l% ## #???????????????? | | ??????????????????????# lll*/## #???????????????? | | ??????????????????????# /@ ### ###?????????????? | | ??????????????????????# # ### #?????????????? | | ?+?+??????????????????# * ! ## #?????????????? | | ??????????????????????# # ## #?????????????? | | ???????+??????????????### # #######?????????????? | | ????????????????????????# ####???????????????????? | | ????????????????????????# #???????????????????+??? | | ?????????b??????????????+ +??????????????????????? | | ????????????????????????# #??????????????????????? | | ??????????????????????+?# #?+????????????????????? | | ????????????????????????# #??????????????????????? | | ????????????????????????+ +??????????????????????? | | ????????????????????????###??????????????????????? | | ?????????????????????????????????????????????????? | | ?????????????????????????????????????????????+???? | | ?????????????????????????????????????????????????? | | ?????????????????????????????????????????????????? | | ?????????????????????????????????????????????????? | | ?????????????????????????????????????????????????? | | ?????????????????????????????????????????????????? | | ?????????????????????????????????????????????????? | | ?????????????????????????????????????????????????? | | ?????????????????????????????????????????????????? | | ?????????????????????????????????????????????????? | | ?????????????????????????????????????????????????? | +----------------------------------------------------+ Best States ------------- Heat Dissipation 31 Energy Generation 10 Energy Capacity 250 Matter Stores 300 Matter Capacity 300 Sight Range 16 Terrain Scan Range 16 Terrain Scan Density 10 ECM Strength 1 Armor Coverage 150 Resistance: TH 10 Evasion (%) 44 Targeting Accuracy 5 Trap Extractor Capacity 6 Item Schematics ----------------- None Robot Schematics ------------------ None Fabricated ------------ Nothing Alien Tech Used ----------------- None Achievements -------------- GoHome() Challenges ------------ None Game ------ Seed AerolevLegDetonator Manual? 0 Play Time 00:23:47 Cumulative 10.8 hours Start 2024.03.31 @ 11:40:43 End 2024.03.31 @ 12:10:36 Sessions 1 Manual Loads 0 Difficulty Rogue Special Mode None Game No. 29 Rogue 29 Adventurer 0 Explorer 0 Win Type - Total 1 Types 1/0/0/0/0/0/0/0/0 Lore% 21 Gallery% 22 Achievement% 23 Wizard Run 0 Options --------- Layout 0 ASCII 0 Keyboard 0 Movement Numpad Keybinds 0 Fullscreen 2 Font 24/Smallcaps Map View 76x50 Zoom Use 5% Tactical HUD 1 Map Filters NONE Filters NONE Steam 1 RUN: 4a6cc0b0-3ae8-49db-b34a-389eb5cab78f